[Event "Titled Tuesday Blitz May 2 Late 2023"]
[White "Bjelobrk, Igor"]
[Black "Hoffmann, Asa"]
[WhiteFideId "4300726"]
[BlackFideId "2001470"]
[WhiteElo "2335"]
[BlackElo "2117"]
[Result "1-0"]
[Round "09"]
[TimeControl "180+2"]
[Date "2023.05.02"]
[WhiteClock "0:00:21"]
[BlackClock "0:00:05"]

1. d4 {[%clk 0:02:58]}  Nf6 {[%clk 0:02:57]} 2. c4 {[%clk 0:02:58]}  c5 {[%clk 0:02:54]} 3. d5 {[%clk 0:02:55]}  e5 {[%clk 0:02:54]} 4. Nc3 {[%clk 0:02:53]}  d6 {[%clk 0:02:54]} 5. e4 {[%clk 0:02:48]}  Be7 {[%clk 0:02:53]} 6. g3 {[%clk 0:02:46]}  O-O {[%clk 0:02:52]} 7. Bg2 {[%clk 0:02:46]}  Na6 {[%clk 0:02:52]} 8. Nge2 {[%clk 0:02:44]}  Ne8 {[%clk 0:02:52]} 9. O-O {[%clk 0:02:41]}  Bd7 {[%clk 0:02:51]} 10. a3 {[%clk 0:02:36]}  Nec7 {[%clk 0:02:50]} 11. f4 {[%clk 0:02:25]}  Bf6 {[%clk 0:02:50]} 12. f5 {[%clk 0:02:20]}  b5 {[%clk 0:02:49]} 13. b3 {[%clk 0:02:18]}  Rb8 {[%clk 0:02:48]} 14. Qd3 {[%clk 0:02:15]}  b4 {[%clk 0:02:38]} 15. Nd1 {[%clk 0:02:15]}  bxa3 {[%clk 0:02:37]} 16. Rxa3 {[%clk 0:02:14]}  Nb4 {[%clk 0:02:34]} 17. Qd2 {[%clk 0:02:13]}  a6 {[%clk 0:02:29]} 18. Nf2 {[%clk 0:02:11]}  h6 {[%clk 0:02:28]} 19. h4 {[%clk 0:02:11]}  Ra8 {[%clk 0:02:11]} 20. Kh2 {[%clk 0:02:08]}  a5 {[%clk 0:02:05]} 21. Nc3 {[%clk 0:02:07]}  Qe8 {[%clk 0:01:49]} 22. Ng4 {[%clk 0:02:06]}  Qe7 {[%clk 0:01:44]} 23. Kh3 {[%clk 0:01:50]}  Rfb8 {[%clk 0:01:43]} 24. Nxf6+ {[%clk 0:01:43]}  Qxf6 {[%clk 0:01:43]} 25. g4 {[%clk 0:01:43]}  g5 {[%clk 0:01:02]} 26. hxg5 {[%clk 0:01:41]}  hxg5 {[%clk 0:01:02]} 27. Rh1 {[%clk 0:01:22]}  Kg7 {[%clk 0:00:56]} 28. Kg3 {[%clk 0:01:21]}  Rh8 {[%clk 0:00:53]} 29. Rxh8 {[%clk 0:01:21]}  Rxh8 {[%clk 0:00:52]} 30. Qxg5+ {[%clk 0:01:21]}  Qxg5 {[%clk 0:00:51]} 31. Bxg5 {[%clk 0:01:21]}  f6 {[%clk 0:00:47]} 32. Bd2 {[%clk 0:01:21]}  Ra8 {[%clk 0:00:43]} 33. Ra1 {[%clk 0:01:11]}  Nc2 {[%clk 0:00:43]} 34. Rh1 {[%clk 0:01:10]}  Nd4 {[%clk 0:00:41]} 35. Bh6+ {[%clk 0:01:07]}  Kf7 {[%clk 0:00:41]} 36. g5 {[%clk 0:01:07]}  fxg5 {[%clk 0:00:37]} 37. Bxg5 {[%clk 0:01:08]}  Rg8 {[%clk 0:00:30]} 38. Rh7+ {[%clk 0:01:07]}  Rg7 {[%clk 0:00:20]} 39. Rxg7+ {[%clk 0:01:07]}  Kxg7 {[%clk 0:00:20]} 40. Be7 {[%clk 0:01:06]}  Ne8 {[%clk 0:00:19]} 41. Bf3 {[%clk 0:00:56]}  Nxb3 {[%clk 0:00:17]} 42. Bh5 {[%clk 0:00:54]}  a4 {[%clk 0:00:16]} 43. Bxe8 {[%clk 0:00:51]}  Bxe8 {[%clk 0:00:16]} 44. Bxd6 {[%clk 0:00:51]}  Nd2 {[%clk 0:00:15]} 45. Bxe5+ {[%clk 0:00:50]}  Kf7 {[%clk 0:00:15]} 46. Bf4 {[%clk 0:00:46]}  Nxc4 {[%clk 0:00:15]} 47. e5 {[%clk 0:00:45]}  a3 {[%clk 0:00:14]} 48. e6+ {[%clk 0:00:42]}  Kf6 {[%clk 0:00:14]} 49. d6 {[%clk 0:00:37]}  Nb6 {[%clk 0:00:11]} 50. Kg4 {[%clk 0:00:34]}  Nd7 {[%clk 0:00:09]} 51. Nd5+ {[%clk 0:00:28]}  Kg7 {[%clk 0:00:06]} 52. exd7 {[%clk 0:00:28]}  Bxd7 {[%clk 0:00:06]} 53. Kg5 {[%clk 0:00:29]}  Kf7 {[%clk 0:00:06]} 54. Be5 {[%clk 0:00:28]}  a2 {[%clk 0:00:06]} 55. Nb6 {[%clk 0:00:25]}  Bc6 {[%clk 0:00:05]} 56. d7 {[%clk 0:00:21]}  Ke7 {[%clk 0:00:05]} 57. Bf6+ {[%clk 0:00:21]}  Kd6 {[%clk 0:00:05]} 58. d8=Q+ {[%clk 0:00:21]} 1-0


[Site "https://www.chess.com"]

[Event "Titled Tuesday Blitz May 2 Late 2023"]
[White "Ballester Llagaria, Luis Eduardo"]
[Black "Van den Dikkenberg, Erik"]
[WhiteFideId "2297620"]
[BlackFideId "1005880"]
[WhiteElo "2344"]
[BlackElo "2118"]
[Result "1-0"]
[Round "09"]
[TimeControl "180+2"]
[Date "2023.05.02"]
[WhiteClock "0:02:06"]
[BlackClock "0:01:37"]

1. e4 {[%clk 0:02:56]}  c5 {[%clk 0:02:59]} 2. Nc3 {[%clk 0:02:56]}  d6 {[%clk 0:02:59]} 3. d4 {[%clk 0:02:56]}  cxd4 {[%clk 0:02:59]} 4. Qxd4 {[%clk 0:02:57]}  Nf6 {[%clk 0:02:58]} 5. Qd2 {[%clk 0:02:58]}  Nc6 {[%clk 0:02:58]} 6. b3 {[%clk 0:02:58]}  g6 {[%clk 0:02:54]} 7. Bb2 {[%clk 0:02:58]}  Bg7 {[%clk 0:02:55]} 8. O-O-O {[%clk 0:02:59]}  O-O {[%clk 0:02:55]} 9. h4 {[%clk 0:02:59]}  h5 {[%clk 0:02:54]} 10. Kb1 {[%clk 0:02:54]}  a6 {[%clk 0:02:51]} 11. Be2 {[%clk 0:02:46]}  b5 {[%clk 0:02:49]} 12. f3 {[%clk 0:02:35]}  Be6 {[%clk 0:02:36]} 13. Nd5 {[%clk 0:02:32]}  Bxd5 {[%clk 0:02:35]} 14. exd5 {[%clk 0:02:33]}  Ne5 {[%clk 0:02:29]} 15. g4 {[%clk 0:02:33]}  hxg4 {[%clk 0:02:24]} 16. fxg4 {[%clk 0:02:28]}  Rc8 {[%clk 0:02:02]} 17. h5 {[%clk 0:02:23]}  Qc7 {[%clk 0:01:44]} 18. h6 {[%clk 0:02:08]}  Bh8 {[%clk 0:01:39]} 19. h7+ {[%clk 0:02:07]}  Kg7 {[%clk 0:01:37]} 20. Qh6# {[%clk 0:02:06]} 1-0


[Site "https://www.chess.com"]

[Event "Titled Tuesday Blitz May 2 Late 2023"]
[White "Ladan, Nicholas"]
[Black "Dovbnia, Nikita"]
[WhiteFideId "30918855"]
[BlackFideId "54104599"]
[WhiteElo "2167"]
[BlackElo "2076"]
[Result "1-0"]
[Round "09"]
[TimeControl "180+2"]
[Date "2023.05.02"]
[WhiteClock "0:01:52"]
[BlackClock "0:01:33"]

1. d4 {[%clk 0:02:52]}  Nf6 {[%clk 0:02:59]} 2. Nf3 {[%clk 0:02:49]}  e6 {[%clk 0:03:00]} 3. Bf4 {[%clk 0:02:49]}  c5 {[%clk 0:02:58]} 4. e3 {[%clk 0:02:49]}  Nc6 {[%clk 0:02:58]} 5. Nbd2 {[%clk 0:02:49]}  b6 {[%clk 0:02:53]} 6. c3 {[%clk 0:02:49]}  Bb7 {[%clk 0:02:54]} 7. Nc4 {[%clk 0:02:49]}  d5 {[%clk 0:02:51]} 8. Nce5 {[%clk 0:02:49]}  Nd7 {[%clk 0:02:45]} 9. Nxf7 {[%clk 0:02:26]}  Kxf7 {[%clk 0:02:40]} 10. Ng5+ {[%clk 0:02:27]}  Kg8 {[%clk 0:01:57]} 11. Nxe6 {[%clk 0:02:26]}  Qe7 {[%clk 0:01:53]} 12. Nc7 {[%clk 0:02:22]}  Re8 {[%clk 0:01:50]} 13. Nxd5 {[%clk 0:02:20]}  Qf7 {[%clk 0:01:43]} 14. Bc4 {[%clk 0:02:18]}  b5 {[%clk 0:01:43]} 15. Ne7+ {[%clk 0:02:14]}  Rxe7 {[%clk 0:01:41]} 16. Bxf7+ {[%clk 0:02:15]}  Kxf7 {[%clk 0:01:40]} 17. Qb3+ {[%clk 0:02:00]}  Kg6 {[%clk 0:01:34]} 18. Qxb5 {[%clk 0:01:59]}  cxd4 {[%clk 0:01:34]} 19. Qxb7 {[%clk 0:01:54]}  dxe3 {[%clk 0:01:33]} 20. Qxc6+ {[%clk 0:01:52]} 1-0


[Site "https://www.chess.com"]

[Event "Titled Tuesday Blitz May 2 Late 2023"]
[White "Kalaiyalahan, Akshaya"]
[Black "Jaskolka, Tomasz"]
[WhiteFideId "422894"]
[BlackFideId "1170791"]
[WhiteElo "2043"]
[BlackElo "2155"]
[Result "1-0"]
[Round "09"]
[TimeControl "180+2"]
[Date "2023.05.02"]
[WhiteClock "0:00:10"]
[BlackClock "0:00:15"]

1. d4 {[%clk 0:03:00]}  d5 {[%clk 0:02:53]} 2. c4 {[%clk 0:02:59]}  e5 {[%clk 0:02:53]} 3. dxe5 {[%clk 0:02:54]}  d4 {[%clk 0:02:53]} 4. Nf3 {[%clk 0:02:52]}  Nc6 {[%clk 0:02:53]} 5. g3 {[%clk 0:02:46]}  Nge7 {[%clk 0:02:51]} 6. Bg2 {[%clk 0:02:46]}  Ng6 {[%clk 0:02:51]} 7. O-O {[%clk 0:02:46]}  Ngxe5 {[%clk 0:02:48]} 8. Nxe5 {[%clk 0:02:46]}  Nxe5 {[%clk 0:02:49]} 9. b3 {[%clk 0:02:46]}  Bc5 {[%clk 0:02:29]} 10. Bb2 {[%clk 0:02:44]}  c6 {[%clk 0:02:28]} 11. e3 {[%clk 0:02:40]}  Bg4 {[%clk 0:02:25]} 12. f3 {[%clk 0:01:44]}  dxe3 {[%clk 0:02:24]} 13. Qe2 {[%clk 0:01:22]}  Nd3 {[%clk 0:02:13]} 14. Bxg7 {[%clk 0:01:08]}  Rg8 {[%clk 0:02:09]} 15. fxg4 {[%clk 0:01:05]}  Rxg7 {[%clk 0:02:07]} 16. Nc3 {[%clk 0:01:03]}  Qd4 {[%clk 0:01:56]} 17. Ne4 {[%clk 0:00:59]}  O-O-O {[%clk 0:01:49]} 18. Rad1 {[%clk 0:00:51]}  Nf4 {[%clk 0:01:13]} 19. gxf4 {[%clk 0:00:34]}  Qxd1 {[%clk 0:01:12]} 20. Rxd1 {[%clk 0:00:31]}  Rxd1+ {[%clk 0:01:12]} 21. Bf1 {[%clk 0:00:25]}  Rd4 {[%clk 0:00:33]} 22. Nxc5 {[%clk 0:00:20]}  Rxf4 {[%clk 0:00:33]} 23. Qxe3 {[%clk 0:00:17]}  Rgxg4+ {[%clk 0:00:33]} 24. Bg2 {[%clk 0:00:17]}  b6 {[%clk 0:00:30]} 25. Nd3 {[%clk 0:00:16]}  Rf6 {[%clk 0:00:29]} 26. Ne5 {[%clk 0:00:15]}  Rg8 {[%clk 0:00:27]} 27. Qh3+ {[%clk 0:00:12]}  Kb7 {[%clk 0:00:26]} 28. Qd7+ {[%clk 0:00:12]}  Ka6 {[%clk 0:00:24]} 29. Nxc6 {[%clk 0:00:11]}  Rg5 {[%clk 0:00:15]} 30. Qxa7# {[%clk 0:00:10]} 1-0


[Site "https://www.chess.com"]

[Event "Titled Tuesday Blitz May 2 Late 2023"]
[White "Todorovic, Bojan"]
[Black "Stanisz, Patryk"]
[WhiteFideId "917087"]
[BlackFideId "1123106"]
[WhiteElo "2266"]
[BlackElo "2069"]
[Result "1-0"]
[Round "09"]
[TimeControl "180+2"]
[Date "2023.05.02"]
[WhiteClock "0:00:27"]
[BlackClock "0:00:05"]

1. d4 {[%clk 0:02:58]}  d5 {[%clk 0:02:59]} 2. c4 {[%clk 0:02:56]}  c6 {[%clk 0:02:59]} 3. Nf3 {[%clk 0:02:52]}  Nf6 {[%clk 0:02:59]} 4. e3 {[%clk 0:02:51]}  e6 {[%clk 0:02:58]} 5. Nc3 {[%clk 0:02:49]}  Nbd7 {[%clk 0:02:58]} 6. Qc2 {[%clk 0:02:44]}  Bd6 {[%clk 0:02:57]} 7. b3 {[%clk 0:02:39]}  b6 {[%clk 0:02:55]} 8. Bb2 {[%clk 0:02:36]}  Bb7 {[%clk 0:02:56]} 9. Bd3 {[%clk 0:02:35]}  Qe7 {[%clk 0:02:54]} 10. e4 {[%clk 0:02:33]}  dxe4 {[%clk 0:02:54]} 11. Nxe4 {[%clk 0:02:31]}  Nxe4 {[%clk 0:02:55]} 12. Bxe4 {[%clk 0:02:31]}  Nf6 {[%clk 0:02:54]} 13. Bd3 {[%clk 0:02:27]}  Bb4+ {[%clk 0:02:53]} 14. Kf1 {[%clk 0:02:24]}  O-O {[%clk 0:02:38]} 15. c5 {[%clk 0:02:19]}  b5 {[%clk 0:02:31]} 16. Ne5 {[%clk 0:02:08]}  Nd7 {[%clk 0:02:09]} 17. Bxh7+ {[%clk 0:02:05]}  Kh8 {[%clk 0:02:07]} 18. Nxd7 {[%clk 0:01:43]}  Qxd7 {[%clk 0:02:08]} 19. Qe4 {[%clk 0:01:43]}  Bd2 {[%clk 0:01:48]} 20. Qh4 {[%clk 0:01:39]}  Qd8 {[%clk 0:01:39]} 21. Qxd8 {[%clk 0:01:32]}  Raxd8 {[%clk 0:01:38]} 22. Be4 {[%clk 0:01:31]}  Bg5 {[%clk 0:01:32]} 23. g3 {[%clk 0:01:28]}  Bf6 {[%clk 0:01:31]} 24. Rd1 {[%clk 0:01:27]}  e5 {[%clk 0:01:29]} 25. Kg2 {[%clk 0:01:17]}  exd4 {[%clk 0:01:28]} 26. Rd3 {[%clk 0:01:16]}  Rfe8 {[%clk 0:01:26]} 27. Bf3 {[%clk 0:01:14]}  b4 {[%clk 0:01:18]} 28. Rhd1 {[%clk 0:01:07]}  Ba6 {[%clk 0:00:19]} 29. R3d2 {[%clk 0:01:06]}  d3 {[%clk 0:00:18]} 30. Bxf6 {[%clk 0:01:04]}  gxf6 {[%clk 0:00:19]} 31. Bxc6 {[%clk 0:01:04]}  Re5 {[%clk 0:00:18]} 32. f4 {[%clk 0:00:56]}  Rxc5 {[%clk 0:00:18]} 33. Be4 {[%clk 0:00:54]}  Kg7 {[%clk 0:00:13]} 34. Kf3 {[%clk 0:00:52]}  Rc3 {[%clk 0:00:02]} 35. h4 {[%clk 0:00:48]}  Re8 {[%clk 0:00:01]} 36. h5 {[%clk 0:00:46]}  Rd8 {[%clk 0:00:01]} 37. g4 {[%clk 0:00:45]}  Kh6 {[%clk 0:00:01]} 38. Rh1 {[%clk 0:00:42]}  Rc2 {[%clk 0:00:01]} 39. Rhh2 {[%clk 0:00:42]}  Rxd2 {[%clk 0:00:01]} 40. Rxd2 {[%clk 0:00:41]}  Kg7 {[%clk 0:00:02]} 41. Ke3 {[%clk 0:00:41]}  Re8 {[%clk 0:00:02]} 42. Kf3 {[%clk 0:00:39]}  Rd8 {[%clk 0:00:03]} 43. g5 {[%clk 0:00:39]}  fxg5 {[%clk 0:00:03]} 44. fxg5 {[%clk 0:00:39]}  Kh8 {[%clk 0:00:04]} 45. Kf4 {[%clk 0:00:38]}  Kg7 {[%clk 0:00:04]} 46. h6+ {[%clk 0:00:37]}  Kh8 {[%clk 0:00:04]} 47. Kf5 {[%clk 0:00:37]}  Kg8 {[%clk 0:00:04]} 48. Kf6 {[%clk 0:00:36]}  Rd6+ {[%clk 0:00:05]} 49. Kf5 {[%clk 0:00:36]}  Rd8 {[%clk 0:00:04]} 50. Ke5 {[%clk 0:00:36]}  Re8+ {[%clk 0:00:04]} 51. Kf4 {[%clk 0:00:35]}  Rd8 {[%clk 0:00:04]} 52. Ke3 {[%clk 0:00:34]}  Re8 {[%clk 0:00:04]} 53. Kf3 {[%clk 0:00:31]}  Rd8 {[%clk 0:00:05]} 54. Bf5 {[%clk 0:00:30]}  Rd6 {[%clk 0:00:04]} 55. Kf4 {[%clk 0:00:29]}  Rd4+ {[%clk 0:00:04]} 56. Ke5 {[%clk 0:00:29]}  Rd8 {[%clk 0:00:05]} 57. Kf6 {[%clk 0:00:28]}  Rd6+ {[%clk 0:00:05]} 58. Ke7 {[%clk 0:00:28]}  Rd4 {[%clk 0:00:05]} 59. g6 {[%clk 0:00:27]}  fxg6 {[%clk 0:00:05]} 60. Bxg6 {[%clk 0:00:27]}  Kh8 {[%clk 0:00:05]} 61. Rf2 {[%clk 0:00:27]} 1-0


[Site "https://www.chess.com"]

[Event "Titled Tuesday Blitz May 2 Late 2023"]
[White "Buchenau, Frank"]
[Black "Fuentes Godoy, Lilia Ivonne"]
[WhiteFideId "4604350"]
[BlackFideId "5104130"]
[WhiteElo "2157"]
[BlackElo "2096"]
[Result "1-0"]
[Round "09"]
[TimeControl "180+2"]
[Date "2023.05.02"]
[WhiteClock "0:01:02"]
[BlackClock "0:00:15"]

1. e4 {[%clk 0:03:00]}  c5 {[%clk 0:02:43]} 2. Nf3 {[%clk 0:03:00]}  Nc6 {[%clk 0:02:42]} 3. Bb5 {[%clk 0:03:00]}  Nd4 {[%clk 0:02:26]} 4. Nxd4 {[%clk 0:02:59]}  cxd4 {[%clk 0:02:27]} 5. O-O {[%clk 0:02:59]}  a6 {[%clk 0:02:24]} 6. Ba4 {[%clk 0:02:56]}  e5 {[%clk 0:02:20]} 7. c3 {[%clk 0:02:56]}  b5 {[%clk 0:02:17]} 8. Bb3 {[%clk 0:02:55]}  dxc3 {[%clk 0:02:17]} 9. dxc3 {[%clk 0:02:54]}  Bb7 {[%clk 0:02:16]} 10. Bd5 {[%clk 0:02:50]}  Bxd5 {[%clk 0:02:14]} 11. Qxd5 {[%clk 0:02:50]}  f6 {[%clk 0:02:05]} 12. a4 {[%clk 0:02:46]}  Ne7 {[%clk 0:02:04]} 13. Qd6 {[%clk 0:02:31]}  Qb8 {[%clk 0:01:50]} 14. Qxb8+ {[%clk 0:02:27]}  Rxb8 {[%clk 0:01:50]} 15. axb5 {[%clk 0:02:26]}  axb5 {[%clk 0:01:50]} 16. Nd2 {[%clk 0:02:14]}  Nc6 {[%clk 0:01:49]} 17. Nb3 {[%clk 0:02:08]}  Be7 {[%clk 0:01:28]} 18. Rd1 {[%clk 0:02:08]}  Kd8 {[%clk 0:01:17]} 19. Be3 {[%clk 0:02:04]}  Kc7 {[%clk 0:01:17]} 20. Rd5 {[%clk 0:01:55]}  b4 {[%clk 0:01:02]} 21. c4 {[%clk 0:01:49]}  Ra8 {[%clk 0:01:01]} 22. Rad1 {[%clk 0:01:47]}  Rhd8 {[%clk 0:00:51]} 23. f4 {[%clk 0:01:43]}  d6 {[%clk 0:00:41]} 24. f5 {[%clk 0:01:40]}  Ra2 {[%clk 0:00:35]} 25. R1d2 {[%clk 0:01:39]}  Rda8 {[%clk 0:00:34]} 26. Kf2 {[%clk 0:01:37]}  Na5 {[%clk 0:00:31]} 27. Nc1 {[%clk 0:01:27]}  b3 {[%clk 0:00:16]} 28. c5 {[%clk 0:01:25]}  Nc4 {[%clk 0:00:16]} 29. cxd6+ {[%clk 0:01:24]}  Bxd6 {[%clk 0:00:15]} 30. R2d3 {[%clk 0:01:17]}  Rxb2+ {[%clk 0:00:15]} 31. Kf3 {[%clk 0:01:15]}  Nxe3 {[%clk 0:00:15]} 32. Kxe3 {[%clk 0:01:12]}  Ra6 {[%clk 0:00:14]} 33. Nxb3 {[%clk 0:01:08]}  Rc6 {[%clk 0:00:14]} 34. Na5 {[%clk 0:01:05]}  Bc5+ {[%clk 0:00:15]} 35. Kf3 {[%clk 0:01:03]}  Rf2+ {[%clk 0:00:15]} 36. Kg3 {[%clk 0:01:03]}  Rxg2+ {[%clk 0:00:15]} 37. Kxg2 {[%clk 0:01:02]} 1-0


[Site "https://www.chess.com"]

[Event "Titled Tuesday Blitz May 2 Late 2023"]
[White "Van Baar, Esper"]
[Black "De Souza, Cristiano Gomes"]
[WhiteFideId "1049321"]
[BlackFideId "2151758"]
[WhiteElo "2180"]
[BlackElo "2068"]
[Result "1-0"]
[Round "09"]
[TimeControl "180+2"]
[Date "2023.05.02"]
[WhiteClock "0:01:15"]
[BlackClock "0:01:49"]

1. e4 {[%clk 0:02:59]}  c5 {[%clk 0:02:58]} 2. Nf3 {[%clk 0:02:58]}  d6 {[%clk 0:02:58]} 3. Bb5+ {[%clk 0:02:59]}  Bd7 {[%clk 0:02:57]} 4. Bxd7+ {[%clk 0:02:59]}  Nxd7 {[%clk 0:02:57]} 5. O-O {[%clk 0:02:52]}  g6 {[%clk 0:02:57]} 6. c4 {[%clk 0:02:52]}  Bg7 {[%clk 0:02:56]} 7. Nc3 {[%clk 0:02:51]}  Ngf6 {[%clk 0:02:55]} 8. d3 {[%clk 0:02:48]}  h6 {[%clk 0:02:54]} 9. Ne1 {[%clk 0:02:47]}  Ne5 {[%clk 0:02:52]} 10. f4 {[%clk 0:02:46]}  Nc6 {[%clk 0:02:53]} 11. Nf3 {[%clk 0:02:45]}  O-O {[%clk 0:02:50]} 12. Be3 {[%clk 0:02:44]}  Ne8 {[%clk 0:02:50]} 13. f5 {[%clk 0:02:35]}  Nc7 {[%clk 0:02:46]} 14. Qd2 {[%clk 0:02:28]}  Kh7 {[%clk 0:02:45]} 15. Kh1 {[%clk 0:02:15]}  Qd7 {[%clk 0:02:43]} 16. Rad1 {[%clk 0:02:07]}  Nd4 {[%clk 0:02:38]} 17. Ne2 {[%clk 0:01:33]}  Nxf3 {[%clk 0:02:33]} 18. Rxf3 {[%clk 0:01:33]}  b5 {[%clk 0:02:30]} 19. Bxh6 {[%clk 0:01:22]}  Rg8 {[%clk 0:01:49]} 20. Rh3 {[%clk 0:01:15]} 1-0


[Site "https://www.chess.com"]

[Event "Titled Tuesday Blitz May 2 Late 2023"]
[White "Torres Dominguez, David"]
[Black "Rose, Felix"]
[WhiteFideId "2220857"]
[BlackFideId "5105722"]
[WhiteElo "1999"]
[BlackElo "2039"]
[Result "0-1"]
[Round "09"]
[TimeControl "180+2"]
[Date "2023.05.02"]
[WhiteClock "0:00:01"]
[BlackClock "0:00:12"]

1. e4 {[%clk 0:02:49]}  e5 {[%clk 0:02:56]} 2. Bc4 {[%clk 0:02:48]}  Nf6 {[%clk 0:02:56]} 3. Nc3 {[%clk 0:02:47]}  Nxe4 {[%clk 0:02:36]} 4. Qh5 {[%clk 0:02:46]}  Nd6 {[%clk 0:02:32]} 5. Qxe5+ {[%clk 0:02:46]}  Qe7 {[%clk 0:02:29]} 6. Qxe7+ {[%clk 0:02:45]}  Bxe7 {[%clk 0:02:29]} 7. Be2 {[%clk 0:02:45]}  O-O {[%clk 0:02:28]} 8. Nf3 {[%clk 0:02:36]}  Nf5 {[%clk 0:02:19]} 9. g4 {[%clk 0:02:35]}  Nh4 {[%clk 0:02:15]} 10. d4 {[%clk 0:02:31]}  Nxf3+ {[%clk 0:02:07]} 11. Bxf3 {[%clk 0:02:31]}  c6 {[%clk 0:02:07]} 12. Bf4 {[%clk 0:02:18]}  d5 {[%clk 0:02:06]} 13. O-O-O {[%clk 0:02:16]}  Nd7 {[%clk 0:01:59]} 14. h4 {[%clk 0:02:13]}  Nf6 {[%clk 0:01:41]} 15. Rdg1 {[%clk 0:02:11]}  Bd7 {[%clk 0:01:38]} 16. g5 {[%clk 0:02:11]}  Ne8 {[%clk 0:01:37]} 17. h5 {[%clk 0:02:06]}  Bd6 {[%clk 0:01:33]} 18. Be3 {[%clk 0:01:56]}  Bf5 {[%clk 0:01:30]} 19. Ne2 {[%clk 0:01:53]}  Nc7 {[%clk 0:01:25]} 20. Ng3 {[%clk 0:01:53]}  Bd7 {[%clk 0:01:23]} 21. Be2 {[%clk 0:01:41]}  Rae8 {[%clk 0:01:21]} 22. Bd3 {[%clk 0:01:37]}  g6 {[%clk 0:01:20]} 23. Rh4 {[%clk 0:01:28]}  f5 {[%clk 0:00:53]} 24. gxf6 {[%clk 0:01:21]}  Rxf6 {[%clk 0:00:53]} 25. hxg6 {[%clk 0:01:14]}  hxg6 {[%clk 0:00:52]} 26. Rgh1 {[%clk 0:01:06]}  Rxe3 {[%clk 0:00:19]} 27. Rh8+ {[%clk 0:00:49]}  Kf7 {[%clk 0:00:19]} 28. R1h7+ {[%clk 0:00:46]}  Ke6 {[%clk 0:00:20]} 29. fxe3 {[%clk 0:00:24]}  Bxg3 {[%clk 0:00:19]} 30. Be2 {[%clk 0:00:16]}  Kd6 {[%clk 0:00:18]} 31. Rd8 {[%clk 0:00:10]}  c5 {[%clk 0:00:08]} 32. Rdxd7+ {[%clk 0:00:09]}  Kc6 {[%clk 0:00:09]} 33. Rxc7+ {[%clk 0:00:09]}  Bxc7 {[%clk 0:00:09]} 34. dxc5 {[%clk 0:00:07]}  Bg3 {[%clk 0:00:09]} 35. Kd2 {[%clk 0:00:06]}  Re6 {[%clk 0:00:08]} 36. Rg7 {[%clk 0:00:05]}  Bf2 {[%clk 0:00:08]} 37. Bd3 {[%clk 0:00:05]}  Bxe3+ {[%clk 0:00:08]} 38. Kd1 {[%clk 0:00:05]}  g5 {[%clk 0:00:09]} 39. Rg6 {[%clk 0:00:05]}  Rxg6 {[%clk 0:00:08]} 40. Bxg6 {[%clk 0:00:06]}  Kxc5 {[%clk 0:00:09]} 41. b3 {[%clk 0:00:04]}  Kd4 {[%clk 0:00:09]} 42. a4 {[%clk 0:00:04]}  a5 {[%clk 0:00:09]} 43. Ke2 {[%clk 0:00:04]}  Bf4 {[%clk 0:00:09]} 44. Kf3 {[%clk 0:00:04]}  Kc3 {[%clk 0:00:09]} 45. Bd3 {[%clk 0:00:05]}  b6 {[%clk 0:00:10]} 46. Kg4 {[%clk 0:00:04]}  Kd2 {[%clk 0:00:10]} 47. Bg6 {[%clk 0:00:04]}  Ke3 {[%clk 0:00:11]} 48. Bh7 {[%clk 0:00:04]}  Kd4 {[%clk 0:00:11]} 49. Bg6 {[%clk 0:00:05]}  Kc5 {[%clk 0:00:11]} 50. Bd3 {[%clk 0:00:05]}  Kb4 {[%clk 0:00:10]} 51. Bf5 {[%clk 0:00:06]}  b5 {[%clk 0:00:10]} 52. Bh7 {[%clk 0:00:05]}  bxa4 {[%clk 0:00:10]} 53. bxa4 {[%clk 0:00:05]}  Kxa4 {[%clk 0:00:11]} 54. Bg8 {[%clk 0:00:06]}  Kb4 {[%clk 0:00:12]} 55. Bxd5 {[%clk 0:00:05]}  a4 {[%clk 0:00:12]} 56. Kf3 {[%clk 0:00:01]}  Kc3 {[%clk 0:00:12]} 0-1


[Site "https://www.chess.com"]

[Event "Titled Tuesday Blitz May 2 Late 2023"]
[White "Roman, Rodrigo"]
[Black "Adel, Sara"]
[WhiteFideId "3701220"]
[BlackFideId "10616764"]
[WhiteElo "1995"]
[BlackElo "1982"]
[Result "1/2-1/2"]
[Round "09"]
[TimeControl "180+2"]
[Date "2023.05.02"]
[WhiteClock "0:01:11"]
[BlackClock "0:00:04"]

1. Nf3 {[%clk 0:02:58]}  Nf6 {[%clk 0:02:59]} 2. d4 {[%clk 0:02:47]}  g6 {[%clk 0:02:59]} 3. c4 {[%clk 0:02:47]}  Bg7 {[%clk 0:02:59]} 4. Nc3 {[%clk 0:02:48]}  O-O {[%clk 0:03:00]} 5. g3 {[%clk 0:02:48]}  d6 {[%clk 0:03:00]} 6. Bg2 {[%clk 0:02:49]}  Nbd7 {[%clk 0:03:01]} 7. O-O {[%clk 0:02:49]}  e5 {[%clk 0:03:02]} 8. e4 {[%clk 0:02:45]}  Nh5 {[%clk 0:03:01]} 9. d5 {[%clk 0:02:41]}  f5 {[%clk 0:02:58]} 10. exf5 {[%clk 0:02:40]}  gxf5 {[%clk 0:02:57]} 11. Ng5 {[%clk 0:02:40]}  Ndf6 {[%clk 0:02:50]} 12. Bf3 {[%clk 0:02:33]}  Qe8 {[%clk 0:02:41]} 13. Ne6 {[%clk 0:02:19]}  Bxe6 {[%clk 0:02:26]} 14. dxe6 {[%clk 0:02:05]}  e4 {[%clk 0:02:10]} 15. Bxh5 {[%clk 0:02:05]}  Nxh5 {[%clk 0:02:07]} 16. Nd5 {[%clk 0:02:03]}  c6 {[%clk 0:02:05]} 17. e7 {[%clk 0:02:03]}  Rf7 {[%clk 0:02:02]} 18. Nc7 {[%clk 0:02:03]}  Qxe7 {[%clk 0:01:55]} 19. Nxa8 {[%clk 0:02:03]}  Nf6 {[%clk 0:01:45]} 20. Bf4 {[%clk 0:02:03]}  Ng4 {[%clk 0:01:44]} 21. Qxd6 {[%clk 0:02:01]}  Qe8 {[%clk 0:01:40]} 22. Nc7 {[%clk 0:02:00]}  Qc8 {[%clk 0:01:39]} 23. Ne6 {[%clk 0:01:59]}  Rd7 {[%clk 0:01:37]} 24. Qa3 {[%clk 0:01:58]}  Bf6 {[%clk 0:01:31]} 25. h3 {[%clk 0:01:57]}  Be7 {[%clk 0:01:31]} 26. Qc3 {[%clk 0:01:55]}  Nf6 {[%clk 0:01:31]} 27. Be5 {[%clk 0:01:55]}  Nh5 {[%clk 0:01:28]} 28. g4 {[%clk 0:01:53]}  fxg4 {[%clk 0:01:27]} 29. hxg4 {[%clk 0:01:54]}  Rd3 {[%clk 0:01:21]} 30. Qe1 {[%clk 0:01:46]}  Qxe6 {[%clk 0:01:10]} 31. Qxe4 {[%clk 0:01:44]}  Nf6 {[%clk 0:00:34]} 32. Qxd3 {[%clk 0:01:39]}  Qxe5 {[%clk 0:00:33]} 33. Rae1 {[%clk 0:01:38]}  Qc7 {[%clk 0:00:26]} 34. Qe2 {[%clk 0:01:34]}  Bc5 {[%clk 0:00:24]} 35. Qe6+ {[%clk 0:01:32]}  Kg7 {[%clk 0:00:24]} 36. Re5 {[%clk 0:01:32]}  Nd7 {[%clk 0:00:06]} 37. Rg5+ {[%clk 0:01:24]}  Kh8 {[%clk 0:00:06]} 38. Rd1 {[%clk 0:01:22]}  Qg3+ {[%clk 0:00:06]} 39. Kh1 {[%clk 0:01:21]}  Qh3+ {[%clk 0:00:05]} 40. Kg1 {[%clk 0:01:22]}  Qg3+ {[%clk 0:00:05]} 41. Kh1 {[%clk 0:01:22]}  Qf3+ {[%clk 0:00:05]} 42. Kh2 {[%clk 0:01:21]}  Qxf2+ {[%clk 0:00:06]} 43. Kh3 {[%clk 0:01:17]}  Qf3+ {[%clk 0:00:06]} 44. Kh2 {[%clk 0:01:17]}  Qf2+ {[%clk 0:00:03]} 45. Kh1 {[%clk 0:01:11]}  Qf3+ {[%clk 0:00:04]} 46. Kh2 {[%clk 0:01:11]}  Qf2+ {[%clk 0:00:04]} 1/2-1/2


[Site "https://www.chess.com"]